bitfinex/quotes_BTCUSD_20230117
["timestamp","ask_amount","ask_price","bid_price","bid_amount"]
[1673966175981,0.0040321,21195.0,21192.0,0.358502]
[1673966176227,0.0040321,21195.0,21190.0,0.471919]
[1673966176492,0.19475805,21195.0,21190.0,0.61308939]
[1673966176828,0.0040321,21195.0,21191.0,1.00721068]
[1673966176994,0.0040321,21195.0,21191.0,0.208509]
[1673966177251,0.0040321,21195.0,21192.0,0.671871]
[1673966177499,0.0040321,21195.0,21193.0,0.87523878]
[1673966177748,0.0040321,21195.0,21194.0,1.62084269]
[1673966177993,3.21e-05,21195.0,21194.0,1.302141]
[1673966178265,3.21e-05,21195.0,21194.0,0.208479]
[1673966179005,3.21e-05,21195.0,21194.0,0.71568068]
[1673966179259,3.21e-05,21195.0,21194.0,1.42010275]
[1673966179511,0.0001,21200.0,21195.0,0.15]
[1673966179777,0.0001,21200.0,21196.0,0.50720168]
[1673966180032,0.0001,21200.0,21197.0,1.15729037]
[1673966180275,0.0001,21200.0,21197.0,1.90087037]
[1673966180525,0.0001,21200.0,21198.0,1.01721673]
[1673966180771,0.0001,21200.0,21199.0,0.47172]
[1673966181017,0.0001,21200.0,21199.0,0.199917]
[1673966181514,0.0001,21200.0,21199.0,0.499917]
[1673966181769,0.0001,21200.0,21199.0,0.199917]
[1673966182081,0.0001,21200.0,21199.0,1.13864396]
[1673966182340,0.0001,21200.0,21199.0,0.36994227]
[1673966182603,0.0001,21200.0,21199.0,0.208417]
[1673966182853,0.19082595,21200.0,21199.0,0.199917]
[1673966183267,0.19082595,21200.0,21192.0,0.471866]
[1673966183482,0.51259495,21199.0,21192.0,0.471866]
[1673966183719,0.51259495,21199.0,21190.0,0.5830744]
[1673966183720,0.19072595,21198.0,21190.0,0.471899]
[1673966183945,0.19072595,21198.0,21188.0,0.471957]
[1673966183946,0.51259495,21197.0,21188.0,0.471957]
[1673966184171,0.51259495,21197.0,21185.0,0.56981136]
[1673966184172,0.51259495,21196.0,21186.0,0.472008]
[1673966184425,0.93604893,21195.0,21186.0,0.50200799]
[1673966184684,0.93604893,21195.0,21192.0,0.008]
[1673966184685,0.51259495,21194.0,21192.0,0.008]
[1673966184968,0.321869,21193.0,21186.0,0.02999999]
[1673966185248,0.321869,21193.0,21189.0,0.13888]
[1673966185249,0.51259495,21192.0,21189.0,0.13888]
[1673966185505,0.51259495,21192.0,21185.0,0.13888]
[1673966185506,0.19072595,21193.0,21185.0,0.472014]
[1673966185772,0.321869,21192.0,21186.0,0.008]
[1673966186039,0.471869,21191.0,21186.0,0.008]
[1673966186295,0.51259495,21190.0,21186.0,0.008]
[1673966186555,0.321869,21189.0,21186.0,0.008]
[1673966186815,0.321869,21188.0,21180.0,0.472143]
[1673966187225,0.321869,21187.0,21186.0,0.049]
[1673966187228,0.98979664,21187.0,21175.0,0.472241]
[1673966187437,1.50703959,21186.0,21175.0,0.77978329]
[1673966187670,0.15,21184.0,21175.0,0.50224099]
[1673966187879,0.51259495,21183.0,21177.0,0.01756562]
[1673966188105,1.266084,21182.0,21177.0,0.01756562]
[1673966188319,0.51259495,21181.0,21177.0,0.01756562]
[1673966188579,0.51259495,21180.0,21177.0,0.01756562]
[1673966188802,0.66259495,21179.0,21177.0,0.01756562]
[1673966189021,0.321869,21178.0,21177.0,0.01756562]
[1673966189244,0.51259495,21178.0,21177.0,0.01756562]
[1673966189459,0.321869,21178.0,21177.0,0.01756562]
[1673966189938,0.622056,21184.0,21177.0,0.11342562]
[1673966190160,1.28998364,21184.0,21178.0,0.02999999]
[1673966190379,0.004,21180.0,21179.0,0.02999999]
[1673966190602,0.004,21180.0,21177.0,0.02556562]
[1673966190603,0.67192764,21180.0,21177.0,0.02556562]
[1673966190819,2.08412664,21179.0,21170.0,0.0005]
[1673966191066,0.83614,21174.0,21170.0,0.0005]
[1673966191286,1.46210064,21173.0,21170.0,0.0005]
[1673966191508,0.321869,21172.0,21170.0,0.0005]
[1673966191727,0.02888732,21176.0,21170.0,0.19086]
[1673966191952,0.21961327,21176.0,21171.0,0.04908599]
[1673966192219,0.02888732,21176.0,21171.0,0.02999999]
[1673966192456,0.02888732,21176.0,21170.0,0.0005]
[1673966192457,0.321869,21175.0,21170.0,0.0005]
[1673966192673,0.321869,21174.0,21170.0,0.0005]
[1673966192903,0.321869,21173.0,21170.0,0.0005]
[1673966193118,0.69186127,21176.0,21170.0,0.03049999]
[1673966193119,0.321869,21172.0,21170.0,0.03049999]
[1673966193346,0.21961327,21176.0,21170.0,0.0005]
[1673966193347,0.091,21173.0,21170.0,0.0005]
[1673966193579,0.091,21173.0,21171.0,0.200259]
[1673966193809,0.091,21173.0,21170.0,0.009]
[1673966194040,0.02888732,21176.0,21171.0,0.200258]
[1673966194287,0.084,21173.0,21172.0,0.51570168]
[1673966194503,0.02888732,21176.0,21172.0,0.681066]
[1673966194728,0.077,21173.0,21172.0,0.03849999]
[1673966194960,0.02888732,21176.0,21172.0,0.303243]
[1673966195175,0.19072595,21176.0,21172.0,0.0085]
[1673966195405,0.82082577,21181.0,21172.0,0.001]
[1673966195406,0.076,21173.0,21172.0,0.001]
[1673966195621,0.58859495,21173.0,21172.0,0.001]
[1673966195890,0.397869,21173.0,21172.0,0.001]
[1673966196425,0.98979664,21173.0,21170.0,0.0005]
[1673966196659,0.98979664,21173.0,21172.0,0.015]
[1673966196660,0.157,21173.0,21172.0,0.015]
[1673966196864,0.321869,21173.0,21170.0,0.0005]
[1673966197079,0.321869,21172.0,21170.0,0.0005]
[1673966197336,0.321869,21171.0,21170.0,0.09636]
[1673966197549,0.077,21173.0,21170.0,0.09636]
[1673966197793,0.15,21176.0,21170.0,0.0005]
[1673966197794,0.622249,21176.0,21170.0,0.0005]
[1673966198031,0.622249,21176.0,21171.0,0.02999999]
[1673966198032,0.077,21173.0,21171.0,0.02999999]
[1673966198236,0.321869,21172.0,21171.0,0.02999999]
[1673966198456,0.077,21171.0,21170.0,0.473866]
[1673966198701,0.39609872,21181.0,21170.0,1.20818216]
[1673966198921,0.19072595,21181.0,21171.0,0.61195397]
[1673966199141,0.19072595,21181.0,21174.0,0.472277]
[1673966199366,0.15,21184.0,21175.0,0.03849999]
[1673966199584,0.15,21184.0,21180.0,10.0]
[1673966199585,0.34072595,21184.0,21180.0,10.0]
[1673966199867,0.47667567,21185.0,21181.0,0.02999999]
[1673966200064,0.46667567,21185.0,21182.0,0.02999999]
[1673966200283,0.94387736,21185.0,21182.0,0.02999999]
[1673966200529,0.472023,21186.0,21182.0,0.02999999]
[1673966200982,0.471921,21190.0,21183.0,0.02999999]
[1673966201208,0.471921,21190.0,21180.0,10.1359]
[1673966201209,0.471971,21188.0,21184.0,0.02999999]
[1673966201435,0.471921,21190.0,21185.0,0.02999999]
[1673966201660,0.471921,21190.0,21186.0,0.02999999]
[1673966201944,0.471857,21193.0,21187.0,0.02999999]
[1673966202156,0.471857,21193.0,21188.0,0.02999999]
[1673966202562,0.471857,21193.0,21183.0,0.42345398]
[1673966202563,0.00344788,21187.0,21183.0,0.42345398]
[1673966202831,0.00344788,21187.0,21180.0,10.0]
[1673966202832,1.21694164,21186.0,21180.0,10.0]
[1673966203092,0.66792764,21185.0,21180.0,10.0]
[1673966203349,0.64449514,21186.0,21180.0,10.0]
[1673966203350,0.19072595,21184.0,21180.0,10.0]
[1673966203882,0.5078698,21187.0,21180.0,10.0]
[1673966203883,0.0358748,21187.0,21181.0,0.200128]
[1673966204142,0.0358748,21187.0,21180.0,10.0]
[1673966204401,0.1128748,21187.0,21183.0,0.001]
[1673966204659,0.0358748,21187.0,21182.0,0.0085]
[1673966204915,0.07,21184.0,21182.0,0.0085]
[1673966205166,0.07,21184.0,21182.0,0.480594]
[1673966205431,0.07,21184.0,21183.0,0.208608]
[1673966205678,0.07,21184.0,21183.0,0.358608]
[1673966205941,0.0358748,21187.0,21183.0,0.358608]
[1673966205942,0.0358748,21187.0,21184.0,0.15]
[1673966206193,0.00498687,21196.0,21185.0,0.67728869]
[1673966206485,0.19571282,21196.0,21186.0,0.56846406]
[1673966206712,0.19571282,21196.0,21184.0,0.622049]
[1673966206713,1.2848537,21195.0,21184.0,0.41846406]
[1673966206968,1.1348537,21194.0,21185.0,0.472016]
[1673966207238,0.19072595,21193.0,21185.0,0.472016]
[1673966207553,0.19072595,21192.0,21186.0,0.200068]
[1673966207769,0.19072595,21192.0,21183.0,1.02884177]
[1673966208017,0.471849,21194.0,21184.0,0.14715]
[1673966208018,0.19072595,21191.0,21184.0,0.14715]
[1673966208280,0.19072595,21190.0,21180.0,10.608731]
[1673966208549,0.19072595,21189.0,21181.0,0.15]
[1673966208844,0.88612855,21197.0,21182.0,0.67421117]
[1673966208845,0.60813609,21192.0,21182.0,0.67421117]
[1673966209085,0.60813609,21192.0,21186.0,0.009]
[1673966209086,1.13502769,21191.0,21186.0,0.009]
[1673966209363,2.08416038,21190.0,21180.0,10.0005]
[1673966209638,1.41617074,21189.0,21180.0,10.0085]
[1673966209917,0.471939,21190.0,21180.0,10.0005]
[1673966210170,0.19072595,21188.0,21182.0,0.008]
[1673966210484,0.471897,21192.0,21182.0,0.008]
[1673966210485,0.19072595,21187.0,21182.0,0.008]
[1673966210741,1.36213506,21194.0,21181.0,0.922099]
[1673966211014,1.89299982,21196.0,21182.0,1.09066306]
[1673966211015,1.1349641,21193.0,21182.0,1.09066306]
[1673966211275,0.00498687,21196.0,21182.0,1.18532269]
[1673966211733,0.71326169,21183.0,21180.0,8.26201804]
[1673966211743,1.07720169,21183.0,21180.0,8.26201804]
[1673966212006,0.6,21181.0,21180.0,6.85658748]
[1673966212271,3.54546419,21181.0,21180.0,5.30803987]
[1673966212539,3.54546419,21181.0,21180.0,4.19203465]
[1673966212540,1.266171,21181.0,21180.0,4.19203465]
[1673966213065,0.321869,21181.0,21180.0,4.19203465]
[1673966213885,0.6,21188.0,21180.0,4.19203465]
[1673966213886,1.88882974,21190.0,21180.0,4.20053465]
[1673966214148,1.88882974,21190.0,21181.0,0.0085]
[1673966214149,1.60714909,21189.0,21181.0,0.0085]
[1673966214414,1.60714909,21189.0,21180.0,4.20053465]
[1673966214415,1.26633214,21188.0,21180.0,4.20053465]
[1673966214674,1.45705809,21187.0,21180.0,4.20053465]
[1673966214930,1.45705809,21186.0,21180.0,4.20053465]
[1673966215188,1.92909409,21185.0,21180.0,4.19203465]
[1673966215504,0.15,21183.0,21180.0,4.19203465]
[1673966215720,1.79822262,21182.0,21180.0,4.19203465]
[1673966215975,1.74353383,21181.0,21180.0,3.8580003]
[1673966216246,2.28128883,21181.0,21180.0,3.8580003]
[1673966216518,2.43128883,21181.0,21180.0,1.6478003]
[1673966216779,0.9,21180.0,21174.0,0.01823927]
[1673966217058,0.321869,21179.0,21174.0,0.01823927]
[1673966217314,1.93418664,21178.0,21174.0,0.01823927]
[1673966217575,0.51918905,21180.0,21174.0,0.01823927]
[1673966217576,0.321869,21177.0,21174.0,0.01823927]
[1673966217833,0.321869,21176.0,21175.0,0.19050884]
[1673966218122,0.084,21180.0,21175.0,0.39071884]
[1673966218407,0.084,21180.0,21176.0,0.200195]
[1673966218669,0.084,21180.0,21177.0,0.0085]
[1673966218927,0.084,21180.0,21178.0,0.20032282]
[1673966219188,0.471942,21190.0,21179.0,0.480665]
[1673966219495,0.74119247,21191.0,21180.0,0.15]
[1673966219786,0.74119247,21191.0,21181.0,0.0085]
[1673966219787,0.94442347,21190.0,21181.0,0.0085]
[1673966220045,1.13514942,21190.0,21181.0,0.0085]
[1673966220311,0.94442347,21189.0,21181.0,0.480604]
[1673966220567,0.94442347,21188.0,21182.0,0.73732479]
[1673966220836,0.19072595,21188.0,21184.0,0.944104]
[1673966221122,0.47678587,21196.0,21181.0,0.480604]
[1673966221123,0.19072595,21187.0,21181.0,0.480604]
[1673966221388,1.45685341,21186.0,21181.0,0.0085]
[1673966221655,1.60685341,21185.0,21182.0,0.003]
[1673966221920,0.321869,21184.0,21178.0,0.612559]
[1673966222223,0.19072595,21183.0,21181.0,0.003]
[1673966222488,0.43021898,21190.0,21182.0,1.144318]
[1673966222745,0.43021898,21190.0,21181.0,0.42935357]
[1673966222746,0.94437127,21189.0,21181.0,0.42935357]
[1673966223013,0.94437127,21189.0,21179.0,0.472149]
[1673966223014,1.56164645,21188.0,21179.0,0.472149]
[1673966223278,1.56164645,21188.0,21175.0,0.29039]
[1673966223279,0.944039,21186.0,21175.0,0.58003691]
[1673966223592,0.944039,21186.0,21174.0,0.63089327]
[1673966223593,2.0940563,21185.0,21182.0,0.003]
[1673966223877,1.26624027,21184.0,21175.0,0.43021898]
[1673966224160,1.26624027,21184.0,21181.0,0.003]
[1673966224161,2.44460444,21183.0,21181.0,0.003]
[1673966224450,0.23604,21184.0,21174.0,0.01823927]
[1673966224451,0.15,21181.0,21174.0,0.01823927]
[1673966224705,0.51259495,21180.0,21174.0,0.01823927]
[1673966224994,1.266233,21179.0,21174.0,0.01823927]
[1673966225261,0.51259495,21178.0,21174.0,0.01823927]
[1673966225567,0.321869,21177.0,21174.0,0.02123927]
[1673966225849,0.321869,21176.0,21174.0,0.01823927]
[1673966226125,0.321869,21176.0,21174.0,0.02123927]
[1673966226126,0.321869,21175.0,21174.0,0.02123927]
[1673966226385,1.82483094,21175.0,21174.0,0.02123927]
[1673966226691,1.78410499,21175.0,21174.0,0.02123927]
[1673966226957,0.321869,21175.0,21174.0,0.02123927]
[1673966227234,0.321869,21175.0,21174.0,0.01823927]
[1673966227235,1.27132569,21175.0,21174.0,0.01823927]
[1673966229592,1.74366869,21173.0,21172.0,0.01012684]
[1673966229850,0.321869,21173.0,21172.0,0.10598684]
[1673966230116,0.058,21175.0,21172.0,0.10598684]
[1673966230117,0.321869,21174.0,21172.0,0.10598684]
[1673966230650,0.321869,21174.0,21172.0,0.01012684]
[1673966230651,0.47720169,21173.0,21172.0,0.01012684]
[1673966230903,1.27136969,21173.0,21172.0,0.01012684]
[1673966231447,1.42136969,21173.0,21172.0,0.01012684]
[1673966231708,1.27136969,21173.0,21172.0,0.01012684]
[1673966231976,1.27136969,21173.0,21172.0,0.0084851]
[1673966232789,1.27136969,21173.0,21172.0,0.0114851]
[1673966232790,1.55096396,21173.0,21172.0,0.0114851]
[1673966233040,1.32936969,21173.0,21172.0,0.0114851]
[1673966233311,1.76209564,21173.0,21172.0,0.0084851]
[1673966233582,0.0029949,21172.0,21171.0,0.01886102]
[1673966233833,1.57438659,21172.0,21171.0,0.01886102]
[1673966234118,2.49590631,21172.0,21171.0,0.01886102]
[1673966234378,0.15,21171.0,21170.0,0.0005]
[1673966234657,0.94907069,21171.0,21170.0,0.0005]
[1673966234938,0.0005,21170.0,21168.0,0.01756562]
[1673966235200,1.74384669,21169.0,21168.0,0.01756562]
[1673966236010,1.27110869,21169.0,21168.0,0.01756562]
[1673966236262,1.42110869,21169.0,21168.0,0.01756562]
[1673966236520,1.42110869,21169.0,21165.0,0.01104031]
[1673966236783,0.321869,21168.0,21165.0,0.01104031]
[1673966237059,0.472386,21170.0,21166.0,0.6]
[1673966237060,0.058,21170.0,21166.0,0.6]
[1673966237319,0.058,21170.0,21165.0,0.01104031]
[1673966237320,0.058,21170.0,21167.0,0.350654]
[1673966237583,0.058,21170.0,21168.0,0.200641]
[1673966237848,0.058,21170.0,21167.0,0.622412]
[1673966238103,0.472134,21181.0,21169.0,0.671248]
[1673966238104,0.4290548,21180.0,21169.0,0.671248]
[1673966238366,0.472134,21181.0,21170.0,0.1585]
[1673966238664,0.94933569,21181.0,21171.0,0.09185139]
[1673966238942,0.94933569,21181.0,21172.0,0.0085]
[1673966238943,0.19072595,21181.0,21172.0,0.0085]
[1673966239228,0.13612855,21179.0,21172.0,0.1585]
[1673966239535,0.005,21180.0,21173.0,0.0630824]
[1673966239799,0.6,21179.0,21172.0,0.0085]
[1673966240068,0.32191,21178.0,21169.0,0.13839]
[1673966240334,0.19072595,21177.0,21169.0,1.08796169]
[1673966240590,0.19072595,21176.0,21167.0,0.89976584]
[1673966240855,0.19072595,21175.0,21170.0,0.0085]
[1673966241114,1.23457152,21179.0,21169.0,0.0085]
[1673966241115,0.19072595,21174.0,21169.0,0.0085]
[1673966241372,0.19072595,21173.0,21169.0,0.0085]
[1673966241630,0.63500152,21176.0,21172.0,0.007]
[1673966241898,0.0192186,21171.0,21164.0,0.15768262]
[1673966242190,0.0192186,21171.0,21170.0,0.001]
[1673966242459,0.1137186,21171.0,21165.0,0.07240583]
[1673966242728,0.00446,21169.0,21164.0,0.01891262]
[1673966242996,0.19072595,21168.0,21164.0,0.01891262]
[1673966243259,0.19072595,21167.0,21164.0,0.06491262]
[1673966243737,0.19072595,21167.0,21164.0,0.01891262]
[1673966243999,0.19072595,21166.0,21164.0,0.01891262]
[1673966244268,1.13983764,21165.0,21164.0,0.01891262]
[1673966244528,0.944388,21165.0,21164.0,0.01891262]
[1673966244850,0.472478,21165.0,21164.0,0.01891262]
[1673966245062,1.42215769,21165.0,21164.0,0.01891262]
[1673966245321,1.89406769,21165.0,21164.0,0.004]
[1673966245590,0.04393175,21163.0,21152.0,0.49395819]
[1673966245848,0.04393175,21163.0,21147.0,0.611502]
[1673966245849,0.98983764,21162.0,21147.0,0.49370627]
[1673966246108,1.545287,21158.0,21146.0,0.472888]
[1673966246413,1.16205328,21157.0,21155.0,0.01941822]
[1673966246661,0.32191,21156.0,21155.0,0.01941822]
[1673966247211,0.79911169,21156.0,21155.0,0.01941822]
[1673966247491,0.32191,21156.0,21155.0,0.01941822]
[1673966248021,1.072587,21161.0,21155.0,0.11527822]
[1673966248290,1.072587,21161.0,21155.0,0.12680604]
[1673966248550,1.072587,21161.0,21155.0,0.11527822]
[1673966248840,0.04393175,21163.0,21155.0,0.11527822]
[1673966249116,0.15,21159.0,21155.0,0.01941822]
[1673966249372,2.99353017,21158.0,21155.0,0.02041822]
[1673966249621,2.99353017,21158.0,21155.0,0.01941822]
[1673966249622,0.32191,21157.0,21155.0,0.01941822]
[1673966249879,0.89307338,21162.0,21155.0,0.01941822]
[1673966249880,0.32191,21156.0,21155.0,0.01941822]
[1673966250165,0.72917836,21162.0,21155.0,0.01941822]
[1673966250166,0.49412564,21162.0,21155.0,0.20977822]
[1673966250436,0.49412564,21161.0,21156.0,0.02097782]
[1673966250701,0.04393175,21163.0,21157.0,0.945276]
[1673966250966,1.7261363,21162.0,21155.0,0.02041822]
[1673966251216,0.66263595,21161.0,21155.0,0.01941822]
[1673966251727,0.51263595,21160.0,21155.0,0.01941822]
[1673966251730,0.59,21159.0,21155.0,0.01941822]
[1673966251976,0.59,21159.0,21146.0,0.15809822]
[1673966251977,0.03883643,21153.0,21146.0,0.15809822]
[1673966252261,1.10263595,21152.0,21146.0,0.01941822]
[1673966252532,0.59,21150.0,21146.0,0.01941822]
[1673966252790,0.51263595,21149.0,21146.0,0.01941822]
[1673966253089,1.42279069,21151.0,21146.0,0.01941822]
[1673966253090,0.59,21147.0,21146.0,0.01941822]
[1673966253347,0.66263595,21147.0,21146.0,0.01941822]
[1673966253626,1.24312543,21153.0,21146.0,0.01941822]
[1673966253889,0.59,21147.0,21146.0,0.01941822]
[1673966254174,2.52559764,21147.0,21146.0,0.01941822]
[1673966254448,2.33487169,21147.0,21146.0,0.02041822]
[1673966254702,2.33487169,21147.0,21134.0,0.49412564]
[1673966254703,0.00099178,21146.0,21134.0,0.49412564]
[1673966254994,0.59,21138.0,21129.0,0.1633756]
[1673966255245,1.14970686,21137.0,21130.0,0.06366606]
[1673966255757,1.14970686,21137.0,21128.0,0.45378666]
[1673966255758,0.19072595,21136.0,21128.0,0.45378666]
[1673966255775,0.59,21135.0,21126.0,0.473328]
[1673966256039,0.59,21135.0,21121.0,1.00512394]
[1673966256040,0.19072595,21134.0,21128.0,0.47720169]
[1673966256335,0.04679089,21144.0,21130.0,0.473252]
[1673966256336,0.19072595,21133.0,21130.0,0.473252]
[1673966256606,0.33799089,21144.0,21130.0,0.448252]
[1673966256607,0.18799089,21144.0,21130.0,0.448252]
[1673966256862,0.18799089,21144.0,21127.0,0.1412]
[1673966256863,2.4825393,21143.0,21131.0,0.201096]
[1673966257138,2.4825393,21143.0,21130.0,0.946504]
[1673966257139,0.59,21141.0,21130.0,0.946504]
[1673966257411,1.08004066,21140.0,21130.0,0.473257]
[1673966257659,0.009,21138.0,21130.0,0.95045869]
[1673966257927,0.19072595,21137.0,21131.0,0.29623187]
[1673966258181,0.49004066,21142.0,21130.0,0.473257]
[1673966258182,0.19072595,21136.0,21130.0,0.473257]
[1673966258443,0.73255,21140.0,21128.0,0.615419]
[1673966258444,0.19072595,21135.0,21128.0,0.615419]
[1673966258695,0.59,21138.0,21127.0,0.614516]
[1673966258696,0.19072595,21134.0,21127.0,0.614516]
[1673966258965,0.19072595,21133.0,21130.0,0.15]
[1673966259235,0.39981743,21140.0,21131.0,0.946476]
[1673966259594,0.089,21140.0,21132.0,0.67828769]
[1673966259859,0.089,21140.0,21134.0,0.946324]
[1673966260120,0.74,21142.0,21135.0,0.209545]
[1673966260410,0.59,21139.0,21131.0,0.94647]
[1673966260668,0.48464595,21142.0,21131.0,0.94647]
[1673966260669,0.19072595,21138.0,21132.0,0.781699]
[1673966260971,0.19072595,21138.0,21133.0,0.651059]
[1673966261241,0.04679089,21144.0,21134.0,1.58451566]
[1673966261505,0.04679089,21144.0,21138.0,0.15]
[1673966261750,0.04679089,21144.0,21139.0,1.89632469]
[1673966262005,0.04679089,21144.0,21140.0,0.200984]
[1673966262290,0.04679089,21144.0,21139.0,0.479833]
[1673966262551,0.23751684,21144.0,21139.0,0.5768325]
[1673966262806,0.19072595,21143.0,21139.0,0.0085]
[1673966263086,0.19072595,21143.0,21136.0,0.473124]
[1673966263087,0.78072595,21143.0,21136.0,0.473124]
[1673966263382,0.19072595,21142.0,21137.0,0.773086]
[1673966263670,0.59,21143.0,21138.0,0.325622]
[1673966263671,0.19072595,21143.0,21138.0,0.325622]
[1673966263927,0.05179089,21144.0,21139.0,0.946082]
[1673966264195,0.04679089,21144.0,21140.0,0.200985]
[1673966264449,0.09679089,21144.0,21141.0,0.946024]
[1673966264705,0.09679089,21144.0,21142.0,0.200961]
[1673966264983,0.09679089,21144.0,21138.0,0.042]
[1673966264984,0.15,21142.0,21138.0,0.042]
[1673966265251,1.01709537,21141.0,21138.0,0.042]
[1673966265509,0.59,21139.0,21138.0,0.042]
[1673966265768,0.59,21139.0,21129.0,0.47326]
[1673966265769,0.15,21138.0,21129.0,0.47326]
[1673966266064,0.59,21136.0,21130.0,0.9787864]
[1673966266335,0.19072595,21135.0,21131.0,0.473221]
[1673966266585,0.19072595,21135.0,21132.0,0.201082]
[1673966266845,0.19072595,21135.0,21132.0,0.473194]
[1673966267108,0.59,21136.0,21133.0,0.201071]
[1673966267416,0.631,21136.0,21131.0,0.473221]
[1673966267671,0.009,21135.0,21131.0,0.473221]
[1673966267926,0.59,21133.0,21129.0,0.47328]
[1673966268187,0.59,21130.0,21128.0,0.02087047]
[1673966268448,0.59,21130.0,21128.0,0.97137216]
[1673966268449,0.09734595,21130.0,21128.0,0.97137216]
[1673966268743,0.19072595,21130.0,21129.0,0.201122]
[1673966269017,0.15,21133.0,21129.0,0.201122]
[1673966269275,0.622581,21137.0,21129.0,0.201122]
[1673966269276,0.15,21138.0,21129.0,0.566663]
[1673966269531,0.50445942,21141.0,21131.0,0.47720169]
[1673966269779,0.50445942,21141.0,21134.0,1.419513]
[1673966270041,0.59,21140.0,21135.0,0.09338]
[1673966270307,0.59,21140.0,21134.0,0.946342]
[1673966270308,0.59,21136.0,21131.0,0.473219]
[1673966270568,0.59,21136.0,21130.0,0.10608195]
[1673966270569,0.59,21132.0,21130.0,0.10608195]
[1673966270829,0.59,21132.0,21129.0,0.48714765]
[1673966270830,0.78072595,21132.0,21129.0,0.01386465]
[1673966271098,0.78072595,21132.0,21131.0,0.004]
[1673966271099,0.19072595,21132.0,21131.0,0.004]
[1673966271410,0.59,21132.0,21131.0,0.004]
[1673966271830,0.15019,21137.0,21131.0,0.09986]
[1673966271831,0.48279319,21137.0,21131.0,0.09986]
[1673966271834,0.59,21132.0,21131.0,0.09986]
[1673966272060,0.59,21136.0,21131.0,0.004]
[1673966272282,0.14994,21139.0,21131.0,0.946476]
[1673966272283,0.48238639,21139.0,21131.0,0.946476]
[1673966272504,0.59,21137.0,21132.0,0.201086]
[1673966272724,0.048,21136.0,21133.0,1.3611202]
[1673966272953,0.59,21140.0,21134.0,0.201058]
[1673966273173,0.048,21136.0,21135.0,0.94626]
[1673966273400,0.59,21140.0,21135.0,1.155803]
[1673966273619,0.59,21140.0,21135.0,0.95476]
[1673966273843,0.045,21137.0,21136.0,0.201032]
[1673966274062,0.59,21140.0,21136.0,0.201032]
[1673966274063,0.59,21140.0,21136.0,0.674158]
[1673966274283,0.59,21140.0,21136.0,0.781626]
[1673966274512,0.50445942,21141.0,21137.0,1.1249857]
[1673966274794,0.50445942,21141.0,21139.0,0.15]
[1673966275070,0.50445942,21141.0,21140.0,0.67818969]
[1673966275342,0.04679089,21144.0,21140.0,1.93276169]
[1673966275628,0.04679089,21144.0,21141.0,0.92720169]
[1673966275893,0.04679089,21144.0,21142.0,1.85082406]
[1673966276152,0.04679089,21144.0,21143.0,0.67815069]
[1673966276443,0.00387593,21145.0,21143.0,0.982418]
[1673966276699,0.00387593,21145.0,21144.0,0.47720169]
[1673966276967,0.00387593,21145.0,21144.0,1.132384]
[1673966277216,0.87910188,21145.0,21139.0,0.473055]
[1673966277474,0.93136678,21142.0,21138.0,0.47308]
[1673966277728,0.93136678,21142.0,21138.0,0.5823769]
[1673966277729,0.59,21140.0,21138.0,0.5823769]
[1673966277985,0.78072595,21140.0,21138.0,0.5823769]
[1673966278265,0.59,21140.0,21138.0,0.47308]
[1673966278550,0.93136678,21142.0,21138.0,0.47308]
[1673966278818,0.93136678,21142.0,21139.0,0.200996]
[1673966279103,0.93136678,21142.0,21139.0,0.473042]
[1673966279104,0.59,21141.0,21139.0,0.473042]
[1673966279365,0.034,21140.0,21139.0,0.5676542]
[1673966279662,0.59,21141.0,21139.0,0.481542]
[1673966279937,0.59,21141.0,21138.0,0.53108]
[1673966280201,0.59,21141.0,21136.0,0.473126]
[1673966280202,0.78072595,21141.0,21136.0,0.473126]
[1673966280454,0.78072595,21141.0,21134.0,0.473156]
[1673966280455,0.19072595,21140.0,21134.0,0.473156]
[1673966280720,0.59,21137.0,21134.0,0.473156]
[1673966280984,0.59,21137.0,21134.0,0.5830355]
[1673966281241,0.59,21137.0,21134.0,0.473156]
[1673966281506,0.78072595,21137.0,21134.0,0.473156]
[1673966282058,0.78072595,21137.0,21131.0,0.473232]
[1673966282059,0.19072595,21136.0,21131.0,0.473232]
[1673966282063,0.78072595,21137.0,21131.0,0.473232]
[1673966282315,0.59,21133.0,21131.0,0.946466]
[1673966282576,0.34279595,21136.0,21131.0,0.946466]
[1673966282577,0.59,21136.0,21132.0,0.0946466]
[1673966282846,0.59,21136.0,21131.0,0.946466]
[1673966282847,0.78072595,21136.0,21131.0,0.946466]
[1673966283107,0.78072595,21136.0,21134.0,0.005]
[1673966283108,0.19072595,21136.0,21134.0,0.005]
[1673966283367,0.59,21136.0,21134.0,0.005]
[1673966283916,0.59,21136.0,21132.0,0.473199]
[1673966284200,0.59,21140.0,21133.0,0.95037869]
[1673966284459,0.59,21140.0,21134.0,0.67826169]
[1673966284717,1.52136678,21142.0,21136.0,0.15]
[1673966284995,1.52136678,21142.0,21137.0,2.10597969]
[1673966285259,0.93136678,21142.0,21138.0,1.00279966]
[1673966285531,0.93136678,21142.0,21139.0,1.122105]
[1673966285822,0.93136678,21142.0,21140.0,0.77720169]
[1673966285823,0.42542769,21142.0,21140.0,0.77720169]
[1673966286084,0.00387593,21145.0,21143.0,0.05231159]
[1673966286391,9.3e-07,21145.0,21144.0,2.09163385]
[1673966286661,0.0001,21150.0,21145.0,0.15]
[1673966286918,0.0001,21150.0,21146.0,1.43148369]
[1673966287219,0.0001,21150.0,21147.0,0.175898]
[1673966287476,0.59,21147.0,21144.0,0.472947]
[1673966287752,0.51269995,21146.0,21143.0,0.05231159]
[1673966288016,0.59,21144.0,21143.0,0.05231159]
[1673966288278,1.10269995,21144.0,21143.0,0.05231159]
[1673966288770,1.41049736,21144.0,21143.0,0.05231159]
[1673966288772,0.321974,21144.0,21143.0,0.05231159]
[1673966289033,1.26316993,21144.0,21143.0,0.05231159]
[1673966289301,1.26316993,21144.0,21143.0,0.00801159]
[1673966289302,2.53309757,21144.0,21143.0,0.00801159]
[1673966289567,0.15,21143.0,21134.0,0.0005]